bitfinex/quotes_ETHUSD_20240823
["timestamp","ask_amount","ask_price","bid_price","bid_amount"]
[1724439174822,3.65203,2738.2,2737.4,2.4338]
[1724439175023,7.30415,2738.2,2737.4,2.4338]
[1724439175328,4.682445,2738.2,2737.4,2.4338]
[1724439175757,8.334575,2738.2,2737.4,2.4338]
[1724439176329,8.334565,2738.2,2737.4,2.4338]
[1724439176736,4.682445,2738.2,2737.4,2.4338]
[1724439176948,2.51856786,2739.0,2738.1,4.26614055]
[1724439177149,3.65118,2738.9,2738.1,4.26614055]
[1724439177788,6.10593,2739.0,2738.1,4.26614055]
[1724439177789,3.65123,2738.8,2738.1,4.26614055]
[1724439179168,3.65123,2738.8,2738.0,3.65228]
[1724439179378,4.626946,2738.8,2738.0,3.65228]
[1724439180365,0.975716,2738.8,2735.9,35.05]
[1724439180565,2.3482,2738.2,2737.2,3.65328]
[1724439181051,6.00024,2738.2,2737.3,2.4407]
[1724439181247,3.0,2738.5,2737.3,2.4407]
[1724439181460,4.20072,2739.2,2737.3,6.09384]
[1724439181461,7.30392,2738.3,2737.3,6.09384]
[1724439181668,3.0,2738.2,2737.4,0.974712]
[1724439182353,0.380912,2738.1,2737.4,0.974712]
[1724439182762,0.380912,2738.1,2737.5,3.65289]
[1724439182965,0.380912,2738.1,2737.5,3.65287]
[1724439183202,0.380912,2738.1,2737.6,3.65279]
[1724439183404,0.380912,2738.1,2737.5,3.65287]
[1724439183704,0.380912,2738.1,2737.5,4.1273455]
[1724439183875,0.380912,2738.1,2737.8,2.4705]
[1724439184515,0.380912,2738.1,2737.8,6.12301]
[1724439184696,0.380912,2738.1,2737.8,2.4705]
[1724439185801,0.380912,2738.1,2737.8,6.12306]
[1724439186002,0.380912,2738.1,2737.9,4.629977]
[1724439186206,0.380912,2738.1,2738.0,9.6594]
[1724439186376,0.380912,2738.1,2738.0,10.2094]
[1724439186585,0.380912,2738.1,2738.0,6.5571]
[1724439186968,0.380912,2738.1,2738.0,2.9048]
[1724439187174,0.380912,2738.1,2738.0,2.949879]
[1724439187508,0.380912,2738.1,2738.0,10.254479]
[1724439187678,0.380912,2738.1,2738.0,10.2094]
[1724439188988,0.380912,2738.1,2738.0,6.5571]
[1724439190114,0.380912,2738.1,2738.0,10.2094]
[1724439190637,0.380912,2738.1,2737.6,2.4453]
[1724439190841,0.380912,2738.1,2737.9,3.65235]
[1724439190996,0.380912,2738.1,2737.9,7.3047]
[1724439191202,0.380912,2738.1,2737.9,3.65235]
[1724439191604,0.380912,2738.1,2737.9,7.3047]
[1724439191803,0.380912,2738.1,2737.9,3.65235]
[1724439192037,0.380912,2738.1,2738.0,0.365235]
[1724439192613,0.380912,2738.1,2737.7,1.6633401]
[1724439192839,0.380912,2738.1,2737.7,5.3160001]
[1724439193422,0.380912,2738.1,2737.7,5.3159501]
[1724439193747,0.380912,2738.1,2737.7,5.3159401]
[1724439193946,0.380912,2738.1,2737.8,3.65256]
[1724439194349,0.380912,2738.1,2737.8,4.42868001]
[1724439194549,0.380912,2738.1,2737.9,4.20243]
[1724439195045,0.380912,2738.1,2737.9,0.55]
[1724439195252,0.380912,2738.1,2737.9,4.2024]
[1724439196249,0.380912,2738.1,2737.9,7.85474]
[1724439196453,0.380912,2738.1,2738.0,0.863086]
[1724439196609,0.380912,2738.1,2738.0,1.413086]
[1724439198182,0.380912,2738.1,2738.0,0.863086]
[1724439198355,0.380912,2738.1,2737.8,4.42860001]
[1724439199170,3.65305,2737.5,2736.7,7.44]
[1724439199369,3.65363,2737.1,2736.2,9.7725]
[1724439199694,3.65333,2737.3,2736.3,3.65444]
[1724439199909,3.65346,2737.2,2736.4,1.342694]
[1724439200193,6.11543,2737.4,2735.9,2.4348]
[1724439200194,3.65417,2736.6,2735.9,2.4348]
[1724439200341,3.65417,2736.6,2735.5,6.09033]
[1724439200342,3.65434,2736.5,2735.5,6.09033]
[1724439200681,3.0,2737.3,2735.5,2.4348]
[1724439200682,3.0,2736.9,2735.5,2.4348]
[1724439200979,2.2854,2736.9,2735.6,0.74380839]
[1724439201180,3.0,2737.1,2736.5,3.65421]
[1724439201506,4.12659462,2737.7,2736.7,7.30786]
[1724439201507,5.93202,2737.7,2736.7,7.30786]
[1724439201784,3.0,2737.6,2736.8,0.730786]
[1724439201968,5.93202,2737.7,2736.8,0.730786]
[1724439201969,2.2793,2737.7,2736.9,3.65375]
[1724439202169,2.2793,2737.7,2737.0,0.55]
[1724439202346,8.932,2737.7,2736.8,0.55]
[1724439203652,8.932,2737.7,2736.8,4.20388]
[1724439204454,3.65308,2737.5,2736.5,3.65424]
[1724439204673,3.65325,2737.3,2736.5,0.608904]
[1724439205679,0.365308,2737.4,2736.5,4.263184]
[1724439205965,3.65301,2737.5,2736.6,0.55]
[1724439206977,5.2793,2737.7,2736.6,0.55]
[1724439207218,3.0,2737.4,2736.6,0.55]
[1724439207402,3.65335,2737.3,2736.5,0.55]
[1724439207579,3.65337,2737.2,2736.5,0.55]
[1724439207913,3.65337,2737.2,2736.1,3.65476]
[1724439207914,3.65384,2736.9,2736.1,2.3752]
[1724439208068,3.65384,2736.9,2735.9,11.09499]
[1724439208268,2.4282,2737.1,2735.9,11.09499]
[1724439208269,3.65397,2736.8,2735.9,11.09499]
[1724439208566,3.65397,2736.8,2736.0,1.347019]
[1724439209225,2.4282,2737.1,2736.0,1.347019]
[1724439209226,3.65417,2736.6,2736.0,1.347019]
[1724439209430,3.65397,2736.8,2735.8,2.3752]
[1724439209634,3.6542,2736.6,2735.8,2.3752]
[1724439210000,3.6542,2736.6,2735.8,6.03042]
[1724439211724,7.30849,2736.6,2735.8,2.3752]
[1724439211904,7.30849,2736.6,2735.9,0.23752]
[1724439211905,3.6542,2736.6,2735.9,0.23752]
[1724439212100,7.30795,2736.8,2735.9,0.23752]
[1724439212301,3.0,2736.7,2735.9,0.23752]
[1724439212503,3.0,2736.7,2735.9,3.89261]
[1724439212705,3.65379,2736.9,2736.0,4.281641]
[1724439212954,2.4282,2737.1,2736.0,4.281641]
[1724439212955,2.4282,2737.1,2736.3,3.65449]
[1724439213230,3.65274,2737.7,2736.3,3.65449]
[1724439213231,2.4282,2737.6,2736.8,3.65381]
[1724439213425,6.08105,2737.6,2736.6,3.65404]
[1724439213623,3.6531,2737.4,2736.6,0.730839]
[1724439213989,3.036305,2737.6,2736.7,3.65395]
[1724439214195,2.4282,2737.6,2736.7,3.65395]
[1724439214428,2.4282,2737.6,2736.6,3.65406]
[1724439214728,3.65301,2737.5,2736.6,3.65406]
[1724439214954,3.0,2737.4,2736.6,3.65406]
[1724439215296,3.0,2737.4,2736.3,6.02969]
[1724439215490,3.0,2737.6,2736.8,2.4332]
[1724439216611,3.0,2737.6,2736.9,3.65374]
[1724439217498,3.0,2737.6,2736.8,2.4332]
[1724439217697,3.0,2737.6,2736.8,6.0871]
[1724439218694,6.65283,2737.6,2736.8,6.0871]
[1724439218895,6.65283,2737.6,2736.9,0.974103]
[1724439219714,2.4839,2737.9,2736.9,0.974103]
[1724439219896,3.65264,2737.8,2736.9,3.65368]
[1724439220226,3.65272,2737.7,2736.9,3.65368]
[1724439220392,2.4839,2737.9,2737.1,3.65347]
[1724439220596,0.38206216,2738.6,2737.3,3.65322]
[1724439220597,3.65205,2738.2,2737.3,3.65322]
[1724439220797,3.65205,2738.2,2737.3,3.72627313]
[1724439220996,0.06367983,2738.6,2737.6,3.65281]
[1724439221227,2.4839,2738.7,2737.3,2.4332]
[1724439221228,6.13539,2738.7,2737.8,3.65251]
[1724439221755,3.65151,2738.6,2737.8,3.65251]
[1724439221900,3.65212,2738.2,2737.4,3.65308]
[1724439222096,3.65212,2738.2,2737.3,2.4332]
[1724439222538,3.65212,2738.2,2737.3,6.08635]
[1724439222898,7.30426,2738.2,2737.3,6.08635]
[1724439223235,3.65212,2738.2,2737.3,6.08635]
[1724439223431,3.65183,2738.4,2737.0,6.02237]
[1724439223432,3.65255,2737.9,2737.0,6.02237]
[1724439223605,3.65255,2737.9,2737.1,3.65349]
[1724439223807,3.65259,2737.8,2737.0,6.02237]
[1724439224000,3.65259,2737.8,2737.0,2.3688]
[1724439224001,3.65271,2737.7,2737.0,2.3688]
[1724439224203,7.30549,2737.7,2737.0,2.3688]
[1724439224406,7.30549,2737.7,2736.7,2.3688]
[1724439224407,7.3061,2737.5,2736.7,2.3688]
[1724439224739,3.65304,2737.5,2736.7,2.3688]
[1724439225821,3.65304,2737.5,2736.7,6.0228]
[1724439225998,7.30609,2737.5,2736.7,2.3688]
[1724439226201,3.65389,2736.9,2736.0,3.65484]
[1724439226405,3.6537,2737.0,2736.1,3.65483]
[1724439227335,8.93075,2737.2,2736.2,3.6547]
[1724439227515,3.0,2737.1,2736.3,2.3507]
[1724439227846,2.2773,2737.2,2736.5,3.65429]
[1724439228149,2.2773,2737.2,2736.4,7.30866]
[1724439228314,3.0,2737.3,2736.7,3.65391]
[1724439228518,3.0,2737.5,2736.8,3.65382]
[1724439228904,5.4778,2737.6,2736.8,3.65382]
[1724439229142,2.4778,2737.6,2736.9,3.65368]
[1724439229350,2.4778,2737.6,2736.9,4.019048]
[1724439229642,6.13065,2737.6,2736.9,0.365368]
[1724439229943,6.13065,2737.6,2736.8,2.3009]
[1724439230343,2.4778,2737.6,2736.9,3.65374]
[1724439230649,3.65298,2737.5,2736.8,2.3009]
[1724439231160,2.2677,2738.0,2737.2,3.65326]
[1724439231307,2.2677,2738.0,2736.9,0.07307064]
[1724439231308,3.65213,2738.2,2737.3,6.37961134]
[1724439231504,3.65213,2738.2,2737.3,2.653426]
[1724439231505,3.6522,2738.1,2737.3,2.653426]
[1724439234225,5.2677,2738.3,2737.4,3.65302]
[1724439234448,5.91962,2738.3,2737.5,0.6306446]
[1724439234649,3.0,2738.2,2737.5,0.6306446]
[1724439235251,3.65218,2738.1,2737.3,2.653426]
[1724439237530,3.65218,2738.1,2737.0,3.65356]
[1724439237531,3.65245,2737.9,2737.0,5.9386]
[1724439237729,3.65223,2738.1,2737.0,5.9386]
[1724439237940,3.65223,2738.1,2737.2,3.65325]
[1724439238143,3.65223,2738.1,2737.1,3.65342]
[1724439238344,6.65204,2738.2,2737.3,3.65316]
[1724439239257,3.6522,2738.1,2737.3,3.65316]
[1724439239464,3.6522,2738.1,2737.3,3.65315]
[1724439241260,3.65232,2738.0,2737.2,1.143852]
[1724439241446,3.65261,2737.8,2737.0,2.2851]
[1724439241649,7.83129,2738.1,2737.2,3.65328]
[1724439241849,7.30452,2738.1,2737.2,3.65328]
[1724439242047,3.65225,2738.1,2737.2,3.65328]
[1724439242254,3.0,2738.2,2737.5,2.4082]
[1724439242766,6.65182,2738.4,2737.6,3.72578787]
[1724439242920,6.65182,2738.4,2737.7,0.61339879]
[1724439244453,10.30367,2738.4,2737.7,0.61339879]
[1724439244666,6.65182,2738.4,2737.6,3.65274]
[1724439246786,10.3037,2738.4,2737.5,2.4082]
[1724439246995,3.65218,2738.1,2737.5,2.4082]
[1724439247692,3.65198,2738.3,2737.5,2.4082]
[1724439247859,6.65178,2738.4,2737.6,3.65273]
[1724439248058,6.65178,2738.4,2737.7,0.606093]
[1724439248271,6.65178,2738.4,2737.5,2.4082]
[1724439249457,3.65205,2738.2,2737.5,2.4082]
[1724439249697,6.65178,2738.4,2737.5,6.06115]
[1724439249910,3.0,2738.4,2737.6,3.6528]
[1724439250074,3.65184,2738.4,2737.5,2.4082]
[1724439250398,3.65205,2738.2,2737.5,2.4082]
[1724439250720,3.65218,2738.1,2737.5,2.4082]
[1724439251020,7.30419,2738.2,2737.5,2.39571375]
[1724439251226,3.65205,2738.2,2737.5,2.39571375]
[1724439251411,0.40499185,2738.1,2737.5,2.39571375]
[1724439252725,4.05716185,2738.1,2737.5,2.39571375]
[1724439253115,0.40499185,2738.1,2737.5,2.39571375]
[1724439253588,4.05720185,2738.1,2737.5,2.39571375]
[1724439253789,3.65237,2738.0,2737.2,3.65328]
[1724439253995,3.65304,2737.5,2736.9,2.4737]
[1724439254307,7.66165718,2737.9,2737.1,3.6535]
[1724439254507,3.65258,2737.8,2736.9,6.12735]
[1724439254830,3.65258,2737.8,2736.9,9.78102]
[1724439254990,1.13142372,2737.7,2737.0,3.65362]
[1724439255392,4.78412372,2737.7,2736.9,6.12735]
[1724439255591,4.78412372,2737.7,2736.9,9.78103]
[1724439255812,1.13142372,2737.7,2737.0,3.65362]
[1724439256020,1.13142372,2737.7,2736.9,6.12735]
[1724439256217,1.13142372,2737.7,2736.9,9.78104]
[1724439256442,1.13142372,2737.7,2737.0,3.65361]
[1724439257846,1.13142372,2737.7,2736.9,9.78111]
[1724439257994,4.13142372,2737.7,2736.9,6.12737]
[1724439258191,4.13142372,2737.7,2737.0,3.65361]
[1724439258494,1.13142372,2737.7,2737.2,3.65335]
[1724439258708,1.13142372,2737.7,2736.9,6.12738]
[1724439258709,6.6525,2737.9,2737.1,3.65348]
[1724439259714,3.65256,2737.8,2737.0,3.65363]
[1724439262391,3.0,2737.9,2737.1,3.65349]
[1724439262593,3.0,2737.9,2737.1,3.65344]
[1724439262816,9.72441382,2738.6,2737.4,2.394]
[1724439262817,3.0,2738.2,2737.4,2.394]
[1724439263018,6.65211,2738.2,2737.4,3.053711]
[1724439263260,6.65211,2738.2,2737.4,6.706771]
[1724439263893,6.65211,2738.2,2737.4,3.053711]
[1724439264099,3.65224,2738.1,2737.4,2.394]
[1724439264318,3.65232,2738.0,2737.4,2.394]
[1724439267246,3.65253,2737.9,2737.4,2.394]
[1724439267423,3.6525,2737.9,2737.0,3.65353]
[1724439267632,0.730482,2737.8,2737.0,3.65353]
[1724439268184,3.0,2738.2,2737.1,2.3507]
[1724439268312,3.0,2738.2,2737.4,3.65302]
[1724439268513,3.0,2738.2,2737.5,3.65294]
[1724439268846,3.65222,2738.1,2737.4,2.106588]
[1724439269010,3.0,2738.0,2737.4,2.106588]
[1724439269214,4.030428,2738.0,2737.4,2.106588]
[1724439269450,7.682748,2738.0,2737.4,2.106588]
[1724439272380,3.6525,2737.9,2737.1,6.10315]
[1724439273826,3.6525,2737.9,2737.1,6.10313]
[1724439273963,3.6525,2737.9,2737.1,9.75655]
[1724439274321,4.7860128,2737.9,2737.1,9.75654]
[1724439274614,4.7860128,2737.9,2737.1,6.10312]
[1724439275367,4.7860128,2737.9,2737.1,9.75654]
[1724439275815,4.7860128,2737.9,2737.1,6.10312]
[1724439276329,6.04818,2737.8,2737.1,2.4497]
[1724439276473,6.04818,2737.8,2736.9,3.65363]
[1724439276474,4.73611928,2737.7,2736.9,5.93443]
[1724439277467,3.65306,2737.5,2736.7,3.65397]
[1724439278376,3.65306,2737.5,2736.7,7.30791]
[1724439278610,3.65306,2737.5,2736.7,7.3079]
[1724439278794,0.365306,2737.4,2736.7,7.3079]
[1724439279285,0.365306,2737.4,2736.7,3.65394]
[1724439280071,2.3203,2737.3,2736.4,3.65442]
[1724439280267,5.97361,2737.3,2736.4,3.65442]
[1724439280926,2.3203,2737.3,2736.5,3.65427]
[1724439281241,5.3203,2737.3,2736.6,3.65405]
[1724439281441,2.3203,2737.3,2736.6,3.65405]
[1724439281584,3.217633,2737.3,2736.6,3.65405]
[1724439282137,3.0,2737.4,2736.8,3.65377]
[1724439282433,3.0,2737.6,2736.9,3.65373]
[1724439282783,3.0,2737.6,2737.0,3.65358]
[1724439282985,3.0,2737.6,2737.1,3.65348]
[1724439283199,2.3459,2737.7,2737.1,3.65348]
[1724439284003,2.3459,2737.7,2736.9,7.30737]
[1724439284221,2.3459,2737.7,2737.0,3.65358]
[1724439285183,2.3459,2737.7,2736.9,4.621117]
[1724439285358,2.3459,2737.7,2736.7,6.0213]
[1724439285559,3.65305,2737.5,2736.7,6.0213]
[1724439286370,3.6531,2737.4,2736.7,2.3674]
[1724439286524,0.730615,2737.3,2736.7,2.3674]
[1724439286729,3.214815,2737.3,2736.5,7.30844]
[1724439286925,3.214815,2737.3,2736.6,4.20408]
[1724439287682,3.214815,2737.3,2736.7,3.65403]
[1724439287831,2.4842,2737.3,2736.7,3.65403]
[1724439288464,6.13746,2737.3,2736.5,3.65425]
[1724439288631,2.4842,2737.3,2736.5,3.65423]
[1724439288831,2.4842,2737.3,2736.5,3.65422]
[1724439289055,2.4842,2737.3,2736.5,7.30844]
[1724439289363,3.097931,2737.3,2736.6,3.65415]
[1724439289747,3.097931,2737.3,2736.7,3.65402]
[1724439290060,2.4842,2737.3,2736.5,3.65417]
[1724439290266,6.1375,2737.3,2736.5,3.65417]
[1724439290470,6.65342,2737.2,2736.1,5.97993]
[1724439290627,6.65342,2737.2,2736.3,3.65453]
[1724439290831,0.913762,2737.1,2736.3,3.65449]
[1724439291064,4.567262,2737.1,2736.3,3.65449]
[1724439291242,0.913762,2737.1,2736.3,3.65449]
[1724439291648,0.913762,2737.1,2736.3,7.30898]
[1724439291831,0.913762,2737.1,2736.3,3.65449]
[1724439292029,0.7567182,2737.0,2736.4,3.65441]
[1724439295148,0.7567182,2737.0,2736.3,3.65453]
[1724439296237,0.7567182,2737.0,2736.2,7.30921]
[1724439296432,0.7567182,2737.0,2736.3,3.65456]
[1724439296779,0.7567182,2737.0,2736.1,2.3252]
[1724439296780,0.7567182,2737.0,2736.4,3.65441]
[1724439297178,0.7567182,2737.0,2736.4,7.30876]
[1724439297376,0.7567182,2737.0,2736.4,7.30871]
[1724439297675,0.7567182,2737.0,2736.2,7.30923]
[1724439297851,0.53240602,2736.9,2736.2,7.30923]
[1724439298255,0.53240602,2736.9,2736.2,3.65461]
[1724439298450,0.53240602,2736.9,2736.0,3.65488]
[1724439298662,0.53240602,2736.9,2734.8,1.52408525]
[1724439298663,4.26811046,2736.7,2735.6,5.96242]
[1724439298866,3.65425,2736.6,2735.7,3.65527]
[1724439300957,3.65361,2737.1,2736.3,2.2506]
[1724439301277,7.30721,2737.1,2736.3,2.2506]
[1724439301577,3.6536,2737.1,2736.3,2.2506]
[1724439301762,10.30662,2737.3,2736.3,6.495568]
[1724439302177,6.05674,2737.7,2736.6,2.2506]
[1724439302339,3.65284,2737.6,2736.7,4.20391]
[1724439302539,3.65297,2737.5,2736.7,0.55]
[1724439302773,6.05674,2737.7,2736.7,0.55]
[1724439302958,0.605674,2737.6,2736.7,5.214893]
[1724439303152,6.05674,2737.7,2736.8,3.72694799]
[1724439303473,0.06368661,2738.2,2736.7,5.214893]
[1724439303474,6.0563,2738.0,2737.1,3.65345]
[1724439304041,3.71576661,2738.2,2737.2,6.07834]
[1724439304295,3.65219,2738.1,2737.2,2.425]
[1724439304954,3.65232,2738.0,2737.2,2.425]
[1724439305151,4.382771,2738.0,2737.2,2.425]
[1724439306177,3.65252,2737.9,2737.2,2.425]
[1724439306386,3.65268,2737.8,2736.9,2.425]
[1724439307567,2.4427,2737.9,2736.9,6.07872]
[1724439307773,9.09515,2737.9,2736.9,6.07872]
[1724439307988,10.4429401,2737.9,2737.0,0.4457005]
[1724439308542,3.0,2737.9,2737.0,0.4457005]
[1724439308770,3.0,2737.9,2737.1,0.55]
[1724439309282,3.0,2737.9,2736.9,6.07872]
[1724439309283,6.65244,2737.9,2737.0,0.55]
[1724439309461,3.0,2737.9,2737.0,0.55]
[1724439309780,3.0,2737.9,2737.2,2.2768]
[1724439310146,6.65246,2737.9,2737.2,2.2768]
[1724439311258,3.65277,2737.7,2736.7,11.09397]
[1724439311450,3.65266,2737.8,2736.8,6.48061]
[1724439311649,3.65271,2737.7,2736.8,6.48061]
[1724439311850,4.0257051,2737.8,2736.8,6.48061]
[1724439312185,4.0257051,2737.8,2736.8,6.48059]
[1724439312387,4.0257051,2737.8,2736.8,2.2768]
[1724439312388,3.65297,2737.5,2736.8,2.2768]
[1724439312683,2.3536,2737.7,2736.8,2.2768]
[1724439312684,0.70257051,2737.7,2736.8,5.93063]
[1724439312890,4.0256951,2737.8,2736.8,5.9306]
[1724439313088,3.0,2737.9,2737.0,7.30712]
[1724439313688,3.0,2737.9,2737.1,3.65347]
[1724439315299,6.65244,2737.9,2737.1,3.65341]
[1724439315469,3.65275,2737.7,2736.9,3.65367]
[1724439315869,4.683286,2737.7,2736.9,3.65367]
[1724439316067,2.3135,2737.6,2736.8,2.2768]
[1724439316272,3.65318,2737.4,2736.5,5.91125]
[1724439316902,3.65323,2737.3,2736.5,5.91125]
[1724439317367,3.65318,2737.4,2736.5,9.56547]
[1724439317570,4.615138,2737.4,2736.5,10.521967]
[1724439318104,3.65325,2737.3,2736.5,5.9112]
[1724439318480,4.615138,2737.4,2736.5,5.9112]
[1724439319105,8.268328,2737.4,2736.5,5.9112]
[1724439319412,3.65326,2737.3,2736.5,5.9112]
[1724439319769,3.65326,2737.3,2736.5,2.257]
[1724439319971,2.4663,2737.1,2736.3,5.92198]
[1724439320197,2.4663,2737.1,2736.3,9.57647]
[1724439320804,2.4663,2737.1,2736.3,5.92198]
[1724439320979,6.11981,2737.1,2736.3,9.57646]
[1724439321714,6.11981,2737.1,2736.4,0.55]
[1724439321914,0.95813318,2737.0,2736.4,0.55]
[1724439322553,0.95813318,2737.0,2736.4,4.20441]
[1724439322844,3.4615218,2737.2,2736.4,4.20441]
[1724439323060,3.4615218,2737.2,2736.5,3.65429]
[1724439324150,3.4615218,2737.2,2736.4,0.55]
[1724439324310,3.65351,2737.1,2736.4,0.55]
[1724439324520,3.65351,2737.1,2736.3,5.92195]
[1724439324735,0.71150318,2737.0,2736.4,0.55]
[1724439326461,3.4615218,2737.2,2736.4,4.20442]
[1724439327857,7.1148818,2737.2,2736.4,4.20442]
[1724439328329,7.1148818,2737.2,2736.4,0.55]
[1724439329414,7.1148818,2737.2,2736.4,4.20443]
[1724439329638,3.4615218,2737.2,2736.4,4.20443]
[1724439329842,3.4615218,2737.2,2736.5,3.65429]
[1724439330469,3.4615218,2737.2,2736.4,5.217048]
[1724439330670,7.1149218,2737.2,2736.4,1.562638]
[1724439331052,7.1149218,2737.2,2736.4,0.55]
[1724439331233,7.1149218,2737.2,2736.4,4.20441]
[1724439331437,3.4615218,2737.2,2736.4,4.20441]
[1724439331853,3.4615218,2737.2,2736.5,3.6543]
[1724439332262,3.4615218,2737.2,2736.4,0.55]
[1724439332461,7.1149518,2737.2,2736.4,0.55]
[1724439332846,0.54198445,2737.1,2736.4,0.55]
[1724439333754,4.19551445,2737.1,2736.4,0.55]
[1724439335464,2.3528,2736.8,2736.1,11.09476]
[1724439335621,2.3528,2736.8,2736.2,0.55]
[1724439336259,2.3528,2736.8,2736.1,3.65475]
[1724439336459,2.3528,2736.8,2736.2,0.55]
[1724439336659,2.953458,2736.8,2736.2,0.55]
[1724439337248,2.953458,2736.8,2736.1,3.65475]
[1724439337436,2.953458,2736.8,2736.0,2.570619]
[1724439337437,2.3528,2736.7,2736.0,0.137319]
[1724439337644,5.3528,2736.7,2736.0,0.137319]
[1724439337826,3.65437,2736.5,2736.0,0.137319]
[1724439340265,7.92248046,2736.5,2736.0,0.137319]
[1724439340466,5.93562,2736.4,2736.0,0.137319]
[1724439340630,5.04038005,2736.3,2736.0,0.137319]
[1724439341352,1.38581005,2736.3,2736.0,0.137319]
[1724439343469,9.06931,2736.7,2736.0,0.137319]
[1724439343629,3.0,2736.7,2736.1,3.65483]
[1724439344029,3.0,2736.8,2736.1,3.65483]
[1724439344259,3.0,2736.8,2736.0,0.137319]
[1724439344469,4.319424,2736.7,2736.0,0.137319]
[1724439344675,3.0,2736.6,2736.0,0.137319]
[1724439345035,3.0,2736.6,2736.0,3.792239]
[1724439345245,3.665384,2736.7,2736.0,3.792239]
[1724439346870,7.319444,2736.7,2736.0,0.137319]
[1724439347037,0.92166476,2736.6,2736.0,0.137319]
[1724439349336,4.26811046,2736.5,2736.0,0.137319]
[1724439349538,3.29746476,2736.6,2736.0,0.137319]
[1724439349791,0.92166476,2736.6,2736.0,0.137319]
[1724439353586,4.57583476,2736.6,2736.0,0.137319]
[1724439353795,1.18952788,2736.5,2736.0,0.137319]
[1724439354164,0.92166476,2736.6,2736.0,0.137319]
[1724439354358,7.319444,2736.7,2736.0,0.137319]
[1724439355195,3.0,2736.7,2736.2,3.65467]
[1724439355350,6.09308,2737.0,2736.2,3.65467]
[1724439355351,3.0,2736.9,2736.2,3.65467]
[1724439356175,3.0,2736.9,2736.3,3.65455]
[1724439356377,6.09281,2737.2,2736.4,6.05724]
[1724439356544,7.98491495,2737.4,2736.5,3.72734724]
[1724439356744,7.98491495,2737.4,2736.4,2.4029]
[1724439356745,3.65344,2737.2,2736.4,2.4029]
[1724439356982,2.362,2737.0,2736.1,2.4]
[1724439357160,4.31686105,2736.9,2736.1,2.4]
[1724439357357,3.65411,2736.7,2736.0,0.137319]
[1724439357779,3.6542,2736.6,2736.0,0.137319]
[1724439358286,3.65397,2736.8,2736.0,0.137319]
[1724439358485,3.65406,2736.7,2736.0,0.137319]
[1724439358841,0.96788611,2736.8,2736.0,0.137319]
[1724439359057,0.96788611,2736.8,2736.0,3.792279]
[1724439359253,4.62190611,2736.8,2736.0,0.137319]
[1724439359472,3.65403,2736.7,2736.0,0.137319]
[1724439359699,4.26811046,2736.5,2736.0,0.137319]
[1724439359908,6.52711046,2736.5,2736.0,0.137319]
[1724439360057,4.26811046,2736.5,2736.0,0.137319]
[1724439360261,3.65417,2736.6,2736.0,0.137319]
[1724439360462,7.30844,2736.6,2736.0,0.137319]
[1724439360771,0.956744,2736.5,2736.0,0.137319]
[1724439361985,4.611044,2736.5,2736.0,0.137319]
[1724439364486,8.87915446,2736.5,2736.0,0.137319]
[1724439364690,6.74361046,2736.2,2736.0,0.137319]
[1724439365110,4.26811046,2736.2,2736.0,0.137319]
[1724439365268,0.79227505,2736.1,2736.0,0.137319]
[1724439366122,7.44710505,2736.1,2736.0,0.137319]
[1724439367765,3.79227505,2736.1,2736.0,0.137319]
[1724439369869,7.44710505,2736.1,2736.0,0.137319]
[1724439370188,11.10193505,2736.1,2736.0,0.137319]
[1724439370405,13.37263505,2736.1,2736.0,0.137319]
[1724439371082,3.65573,2735.5,2734.7,2.4055]
[1724439371269,3.6555,2735.6,2734.7,2.4055]
[1724439371270,7.92396046,2735.4,2734.7,2.4055]
[1724439372072,3.656,2735.3,2734.7,2.4055]
[1724439372734,3.0,2735.5,2734.7,2.4055]
[1724439372940,4.26811046,2735.7,2734.8,3.65648]
[1724439372941,3.65537,2735.7,2734.8,3.65648]
[1724439373079,3.957957,2735.6,2734.8,3.65648]
[1724439373452,7.613467,2735.6,2734.8,3.65648]
[1724439374518,3.957957,2735.6,2734.8,3.65648]
[1724439374836,7.613517,2735.6,2734.7,6.06207]
[1724439375175,3.0,2735.6,2734.9,2.4171]
[1724439375374,6.65511,2735.9,2735.0,3.6562]
[1724439375613,6.65511,2735.9,2735.1,2.3395]
[1724439376178,3.65524,2735.8,2735.1,2.3395]
[1724439376373,3.0,2735.7,2735.1,2.3395]
[1724439376639,1.031057,2735.6,2735.1,2.3395]
[1724439377075,9.68720501,2736.0,2735.1,2.3395]
[1724439377276,3.65512,2735.9,2735.1,2.3395]
[1724439377531,3.65532,2735.8,2735.1,2.3395]
[1724439377732,3.6555,2735.6,2735.1,2.3395]
[1724439377879,7.31064,2735.8,2735.1,2.3395]
[1724439378078,3.65532,2735.8,2735.1,2.3395]
[1724439378333,4.44766305,2735.8,2735.1,2.3395]
[1724439379418,3.65539,2735.7,2735.1,2.3395]
[1724439380635,0.79234305,2735.8,2735.1,2.3395]
[1724439380935,7.44758305,2735.8,2735.1,2.3395]
[1724439381434,7.44758305,2735.8,2735.0,3.65623]
[1724439381435,3.0,2735.8,2735.4,2.2715]
[1724439381736,3.0,2735.9,2735.4,2.2715]
[1724439383538,3.0,2735.9,2734.8,5.92805]
[1724439383539,4.26811046,2735.7,2734.8,5.92805]
[1724439383722,5.22388151,2735.7,2734.8,2.2715]
[1724439383881,3.65577,2735.4,2734.8,2.2715]
[1724439385425,3.0,2735.6,2734.8,2.2715]
[1724439385426,3.65597,2735.3,2734.8,2.2715]